bitfinex-derivatives/quotes_BTCF0:USTF0_20260118
["timestamp","ask_amount","ask_price","bid_price","bid_amount"]
[1768761994336,0.09498986,95390.0,95369.0,0.01719179]
[1768761994528,0.09498986,95390.0,95370.0,0.010489]
[1768761994834,0.09498986,95390.0,95370.0,0.02596971]
[1768761995136,0.09498986,95390.0,95371.0,0.01548071]
[1768761995835,0.09498986,95389.0,95371.0,0.01548071]
[1768761996139,0.09498986,95387.0,95368.0,0.12036971]
[1768761996529,0.09498986,95387.0,95369.0,0.10484323]
[1768761997139,0.09498986,95387.0,95370.0,0.010489]
[1768761998840,0.09498986,95387.0,95370.0,0.11508702]
[1768762000338,0.09498986,95387.0,95377.0,0.10459802]
[1768762001247,0.09717505,95386.0,95369.0,0.010489]
[1768762001547,0.09717505,95386.0,95370.0,0.10459802]
[1768762001744,0.09717505,95386.0,95370.0,0.11854825]
[1768762001942,0.09717505,95385.0,95369.0,0.010489]
[1768762002136,0.09717505,95385.0,95370.0,0.10459802]
[1768762003446,0.09717505,95385.0,95371.0,0.010488]
[1768762003743,0.09717505,95385.0,95375.0,0.10459802]
[1768762004241,0.09717505,95385.0,95371.0,0.010488]
[1768762004543,0.09717505,95385.0,95375.0,0.10459802]
[1768762007036,0.09717505,95385.0,95371.0,0.010488]
[1768762007345,0.09717505,95385.0,95375.0,0.10459802]
[1768762008448,0.09733225,95390.0,95378.0,0.010488]
[1768762008646,0.09733225,95390.0,95380.0,0.10459802]
[1768762010233,0.21083768,95390.0,95375.0,0.010488]
[1768762010448,0.09717505,95388.0,95380.0,0.10459802]
[1768762010649,0.09717505,95388.0,95378.0,0.10459802]
[1768762012449,0.0944,95402.0,95379.0,0.11578264]
[1768762012648,0.010485,95406.0,95392.0,0.10459802]
[1768762012950,0.010485,95406.0,95385.0,0.11578264]
[1768762012951,0.10718987,95409.0,95390.0,0.10459802]
[1768762013151,0.0244017,95408.0,95390.0,0.10459802]
[1768762013342,0.10718987,95409.0,95398.0,0.10459802]
[1768762013543,0.09670587,95409.0,95398.0,0.10459802]
[1768762014354,0.0907382,95408.0,95398.0,0.10459802]
[1768762014661,0.0907382,95406.0,95398.0,0.10459802]
[1768762015040,0.0907382,95404.0,95396.0,0.10459802]
[1768762015242,0.0907382,95400.0,95390.0,0.19899802]
[1768762015745,0.0907382,95400.0,95391.0,0.1048196]
[1768762018556,0.11382294,95404.0,95391.0,0.1048196]
[1768762020341,0.00230587,95409.0,95391.0,0.1048196]
[1768762020559,0.0907382,95408.0,95391.0,0.1048196]
[1768762022355,0.20456114,95407.0,95391.0,0.1048196]
[1768762022957,0.20456114,95407.0,95392.0,0.010486]
[1768762023458,0.20456114,95407.0,95390.0,0.19899802]
[1768762023858,0.20456114,95407.0,95391.0,0.1048229]
[1768762024062,0.00230587,95409.0,95392.0,0.11578264]
[1768762024260,0.00230587,95409.0,95399.0,0.10459802]
[1768762024465,0.0907382,95418.0,95400.0,0.010485]
[1768762024654,0.0907382,95418.0,95402.0,0.010485]
[1768762025162,0.0907382,95418.0,95400.0,0.11508302]
[1768762025966,0.0907382,95418.0,95408.0,0.10459802]
[1768762027858,0.11382294,95422.0,95408.0,0.10459802]
[1768762028059,0.11382294,95429.0,95412.0,0.11508202]
[1768762028359,0.11382294,95429.0,95419.0,0.10459802]
[1768762028561,0.20456114,95429.0,95412.0,0.010484]
[1768762028759,0.0907382,95428.0,95412.0,0.010484]
[1768762029158,0.29896114,95433.0,95418.0,0.10459802]
[1768762030249,0.29896114,95433.0,95415.0,0.010484]
[1768762030250,0.20456114,95433.0,95415.0,0.010484]
[1768762030459,0.20456114,95433.0,95420.0,0.10459802]
[1768762031062,0.11382294,95437.0,95420.0,0.10459802]
[1768762031266,0.20456114,95437.0,95420.0,0.10459802]
[1768762031564,0.20456114,95443.0,95427.0,0.10459802]
[1768762031863,0.20456114,95443.0,95422.0,0.21406045]
[1768762032063,0.20456114,95442.0,95422.0,0.11578264]
[1768762032259,0.20456114,95440.0,95423.0,0.10478336]
[1768762032466,0.0907382,95438.0,95423.0,0.10494056]
[1768762032655,0.0907382,95438.0,95423.0,0.0001572]
[1768762032856,0.0907382,95438.0,95424.0,0.10478336]
[1768762035463,0.0907382,95435.0,95423.0,0.0001572]
[1768762036962,0.20456114,95435.0,95423.0,0.0001572]
[1768762037566,0.0907382,95443.0,95423.0,0.0001572]
[1768762037770,0.0907382,95443.0,95430.0,0.10459802]
[1768762040169,0.21504114,95449.0,95430.0,0.10459802]
[1768762040367,0.0907382,95448.0,95430.0,0.10459802]
[1768762040572,0.0907382,95447.0,95430.0,0.10459802]
[1768762040760,0.20456114,95447.0,95430.0,0.10459802]
[1768762041160,0.20456114,95447.0,95437.0,0.10459802]
[1768762041367,0.20456114,95447.0,95431.0,0.010482]
[1768762041660,0.20456114,95447.0,95430.0,0.10459802]
[1768762042976,0.0944,95452.0,95437.0,0.10459802]
[1768762043170,0.21343275,95453.0,95440.0,0.10459802]
[1768762043471,0.09770643,95451.0,95440.0,0.10459802]
[1768762043863,0.09770643,95449.0,95432.0,0.010482]
[1768762044070,0.09770643,95448.0,95439.0,0.10459802]
[1768762044759,0.09770643,95448.0,95428.0,0.11779099]
[1768762044760,0.09770643,95448.0,95438.0,0.10459802]
[1768762045277,0.09770643,95448.0,95434.0,0.09436]
[1768762046282,0.09770643,95447.0,95434.0,0.09436]
[1768762046771,0.09770643,95450.0,95437.0,0.10459802]
[1768762046967,0.09770643,95448.0,95435.0,0.10477677]
[1768762047164,0.22391275,95448.0,95430.0,0.10459802]
[1768762047473,0.22391275,95448.0,95435.0,0.10477402]
[1768762047974,0.21343275,95448.0,95431.0,0.09436]
[1768762048366,0.21343275,95448.0,95432.0,0.10477622]
[1768762050677,0.22758575,95447.0,95432.0,0.10477622]
[1768762051762,0.22758575,95447.0,95433.0,0.09436]
[1768762052161,0.22758575,95447.0,95434.0,0.10477841]
[1768762053580,0.22758575,95447.0,95435.0,0.09436]
[1768762054775,0.21710575,95447.0,95435.0,0.09436]
[1768762055168,0.010479,95458.0,95438.0,0.010481]
[1768762055367,0.09436,95459.0,95435.0,0.09436]
[1768762055368,0.09818234,95455.0,95440.0,0.10459802]
[1768762055567,0.21710575,95455.0,95440.0,0.10459802]
[1768762055771,0.09818234,95454.0,95440.0,0.10459802]
[1768762055981,0.21710575,95454.0,95441.0,0.010481]
[1768762056368,0.11892341,95458.0,95444.0,0.11507802]
[1768762056574,0.09818234,95466.0,95447.0,0.12959719]
[1768762056772,0.11180237,95465.0,95448.0,0.09436]
[1768762057569,0.11180237,95465.0,95449.0,0.01048]
[1768762058074,0.09818234,95466.0,95449.0,0.01048]
[1768762058277,0.09316512,95472.0,95450.0,0.10475975]
[1768762058481,0.10459802,95470.0,95451.0,0.11325664]
[1768762058667,0.09316512,95472.0,95452.0,0.01048]
[1768762058874,0.09316512,95472.0,95456.0,0.010479]
[1768762059481,0.12140717,95488.0,95463.0,0.12373464]
[1768762059683,0.12140717,95488.0,95459.0,0.09609094]
[1768762059684,0.20496749,95483.0,95464.0,0.09436]
[1768762059875,0.20496749,95482.0,95464.0,0.09436]
[1768762060077,0.09316512,95482.0,95465.0,0.11325664]
[1768762060280,0.11180237,95486.0,95465.0,0.11325664]
[1768762060479,0.20496749,95483.0,95464.0,0.09436]
[1768762060675,0.20496749,95479.0,95464.0,0.09436]
[1768762062170,0.20496749,95477.0,95458.0,0.11325664]
[1768762062370,0.20496749,95477.0,95465.0,0.1047433]
[1768762062371,0.09316512,95476.0,95465.0,0.1047433]
[1768762062679,0.09316512,95476.0,95460.0,0.010479]
[1768762062985,0.09316512,95476.0,95460.0,0.1152223]
[1768762064172,0.20496749,95476.0,95460.0,0.1047433]
[1768762064394,0.20496749,95480.0,95460.0,0.21799994]
[1768762064677,0.00230405,95484.0,95460.0,0.1047433]
[1768762064678,0.20496749,95477.0,95460.0,0.1047433]
[1768762065067,0.09316512,95476.0,95460.0,0.1047433]
[1768762065268,0.09316512,95474.0,95460.0,0.1047433]
[1768762067180,0.09316512,95474.0,95461.0,0.09432]
[1768762067583,0.09316512,95474.0,95462.0,0.10474823]
[1768762069287,0.09316512,95474.0,95461.0,0.09432]
[1768762069487,0.09316512,95474.0,95462.0,0.10474714]
[1768762072883,0.21801978,95471.0,95460.0,0.09432]
[1768762073190,0.21801978,95471.0,95462.0,0.10474714]
[1768762073379,0.09873147,95471.0,95458.0,0.09432]
[1768762073890,0.09873147,95471.0,95459.0,0.10474988]
[1768762074782,0.09873147,95460.0,95451.0,0.09432]
[1768762075089,0.10442287,95470.0,95451.0,0.1048]
[1768762075090,0.21801978,95467.0,95451.0,0.1048]
[1768762075483,0.09873147,95467.0,95451.0,0.1048]
[1768762076682,0.09873147,95467.0,95451.0,0.16101287]
[1768762077084,0.09873147,95465.0,95451.0,0.15053287]
[1768762077292,0.21801978,95464.0,95451.0,0.15053287]
[1768762077489,0.21801978,95456.0,95442.0,0.07498917]
[1768762077690,0.11928831,95455.0,95443.0,0.09432]
[1768762077989,0.11928831,95455.0,95447.0,0.10475701]
[1768762078190,0.11928831,95459.0,95443.0,0.104801]
[1768762078380,0.09873147,95462.0,95448.0,0.10476799]
[1768762078586,0.21801978,95462.0,95443.0,0.104801]
[1768762078995,0.21801978,95462.0,95444.0,0.10476799]
[1768762079396,0.11928831,95461.0,95444.0,0.10476799]
[1768762080087,0.09432,95467.0,95444.0,0.10476799]
[1768762080088,0.11928831,95459.0,95444.0,0.10476799]
[1768762080287,0.11928831,95458.0,95444.0,0.10476799]
[1768762080693,0.09873147,95459.0,95444.0,0.10476799]
[1768762081388,0.11928831,95462.0,95444.0,0.10476799]
[1768762081588,0.11928831,95461.0,95444.0,0.10476799]
[1768762083191,0.09873147,95462.0,95444.0,0.22191041]
[1768762083396,0.11928831,95464.0,95444.0,0.29689958]
[1768762083597,0.11928831,95464.0,95444.0,0.22191041]
[1768762084293,0.11928831,95464.0,95444.0,0.29689958]
[1768762084488,0.11928831,95464.0,95445.0,0.11714242]
[1768762084695,0.31233978,95467.0,95446.0,0.01048]
[1768762085091,0.11928831,95466.0,95447.0,0.1047625]
[1768762085297,0.11928831,95466.0,95447.0,0.22190492]
[1768762085594,0.11928831,95466.0,95447.0,0.11714242]
[1768762085795,0.11928831,95466.0,95448.0,0.10475975]
[1768762086187,0.11928831,95465.0,95448.0,0.10475975]
[1768762087196,0.00230453,95464.0,95448.0,0.17974892]
[1768762087993,0.11928831,95463.0,95448.0,0.17974892]
[1768762088197,0.101036,95464.0,95449.0,0.07498917]
[1768762090003,0.22032431,95464.0,95449.0,0.07498917]
[1768762090501,0.22032431,95464.0,95448.0,0.07498917]
[1768762091001,0.00230453,95464.0,95448.0,0.07498917]
[1768762092201,0.00230453,95464.0,95449.0,0.07498917]
[1768762094504,0.00230453,95464.0,95449.0,0.08546917]
[1768762094706,0.00230453,95464.0,95449.0,0.07498917]
[1768762094903,0.12159284,95464.0,95449.0,0.07498917]
[1768762095502,0.13207084,95464.0,95449.0,0.07498917]
[1768762095699,0.11928831,95462.0,95448.0,0.07498917]
[1768762098304,0.00230453,95464.0,95448.0,0.07498917]
[1768762098492,0.00230453,95464.0,95449.0,0.07498917]
[1768762101303,0.00230453,95464.0,95450.0,0.07498917]
[1768762102008,0.00230453,95464.0,95451.0,0.01048]
[1768762102913,0.00230453,95464.0,95451.0,0.12826124]
[1768762103307,0.00230443,95469.0,95454.0,0.21387416]
[1768762103506,0.09432,95478.0,95462.0,0.11778124]
[1768762103704,0.010477,95477.0,95462.0,0.11778124]
[1768762103904,0.010477,95477.0,95461.0,0.09609292]
[1768762106010,0.09432,95478.0,95461.0,0.09609292]
[1768762106714,0.09432,95478.0,95461.0,0.21387416]
[1768762108202,0.09432,95478.0,95465.0,0.11778124]
[1768762110715,0.09432,95478.0,95466.0,0.11778124]
[1768762111310,0.09432,95478.0,95465.0,0.09609292]
[1768762113312,0.010476,95483.0,95466.0,0.11778124]
[1768762113516,0.010476,95483.0,95466.0,0.21387416]
[1768762113816,0.010476,95483.0,95467.0,0.11778124]
[1768762114013,0.010476,95486.0,95467.0,0.11778124]
[1768762114711,0.11811901,95488.0,95467.0,0.12825924]
[1768762115014,0.11811901,95488.0,95468.0,0.11778124]
[1768762115316,0.010476,95487.0,95468.0,0.11778124]
[1768762117913,0.010476,95487.0,95469.0,0.11736102]
[1768762118113,0.010476,95487.0,95469.0,0.21493892]
[1768762118422,0.010476,95487.0,95470.0,0.21493892]
[1768762118617,0.010476,95487.0,95471.0,0.11736102]
[1768762118825,0.010476,95487.0,95450.0,0.20863934]
[1768762118826,0.104795,95497.0,95477.0,0.11736102]
[1768762119014,0.1043633,95490.0,95476.0,0.0975779]
[1768762119213,0.30681628,95497.0,95478.0,0.11736102]
[1768762119417,0.1043633,95490.0,95478.0,0.11736102]
[1768762120323,0.12394692,95496.0,95477.0,0.0975779]
[1768762120513,0.1043633,95490.0,95477.0,0.0975779]
[1768762120713,0.12394692,95496.0,95477.0,0.21493892]
[1768762120914,0.1043633,95490.0,95473.0,0.11736102]
[1768762121116,0.1043633,95490.0,95474.0,0.11736102]
[1768762121621,0.010475,95494.0,95476.0,0.11736102]
[1768762121822,0.1043633,95490.0,95477.0,0.0975779]
[1768762122122,0.1043633,95490.0,95478.0,0.11736102]
[1768762124422,0.1043633,95490.0,95477.0,0.0975779]
[1768762124818,0.010475,95494.0,95477.0,0.0975779]
[1768762125019,0.1043633,95490.0,95477.0,0.21493892]
[1768762125524,0.1043633,95490.0,95479.0,0.21493892]
[1768762125718,0.1043633,95490.0,95480.0,0.11736102]
[1768762125919,0.09902436,95506.0,95484.0,0.11736102]
[1768762126119,0.010475,95499.0,95484.0,0.11736102]
[1768762126520,0.1043633,95500.0,95484.0,0.11736102]
[1768762127218,0.010474,95502.0,95484.0,0.11736102]
[1768762127419,0.1043633,95500.0,95484.0,0.11736102]
[1768762127624,0.010475,95497.0,95484.0,0.11736102]
[1768762128025,0.1043633,95494.0,95484.0,0.11736102]
[1768762129420,0.1148383,95494.0,95483.0,0.0975779]
[1768762129815,0.1148383,95494.0,95484.0,0.1047241]
[1768762130626,0.1148383,95494.0,95478.0,0.0975779]
[1768762130826,0.1043633,95490.0,95478.0,0.1918979]
[1768762131221,0.010476,95489.0,95478.0,0.30925892]
[1768762131627,0.1043633,95490.0,95479.0,0.10472958]
[1768762132019,0.09902436,95501.0,95480.0,0.11736102]
[1768762132020,0.010475,95495.0,95480.0,0.11736102]
[1768762132228,0.1043633,95490.0,95480.0,0.11736102]
[1768762133226,0.010475,95495.0,95480.0,0.11736102]
[1768762133430,0.1043633,95490.0,95480.0,0.11736102]
[1768762133834,0.1043633,95490.0,95477.0,0.1087478]
[1768762134136,0.1043633,95490.0,95479.0,0.10472849]
[1768762134623,0.1043633,95490.0,95477.0,0.1087478]
[1768762134918,0.1043633,95490.0,95478.0,0.10472903]
[1768762135124,0.1043633,95490.0,95479.0,0.1087478]
[1768762135927,0.1043633,95490.0,95480.0,0.10472903]
[1768762136132,0.1043633,95490.0,95476.0,0.1087478]
[1768762136334,0.1043633,95490.0,95477.0,0.1087478]
[1768762136530,0.010476,95489.0,95477.0,0.1087478]
[1768762137232,0.10941585,95497.0,95478.0,0.21347848]
[1768762137233,0.010475,95492.0,95478.0,0.21347848]
[1768762137528,0.1148393,95490.0,95478.0,0.1087478]
[1768762137930,0.1043633,95490.0,95479.0,0.10473068]
[1768762139529,0.1043633,95490.0,95472.0,0.09432]
[1768762139731,0.010475,95491.0,95473.0,0.1087478]
[1768762140039,0.1043633,95490.0,95473.0,0.2030678]
[1768762140238,0.1043633,95483.0,95473.0,0.2030678]
[1768762140441,0.1043633,95483.0,95474.0,0.10472903]
[1768762140737,0.1043633,95490.0,95474.0,0.10472903]
[1768762141639,0.1043633,95484.0,95474.0,0.10472903]
[1768762142243,0.11989085,95493.0,95474.0,0.10472903]
[1768762142542,0.1043633,95490.0,95474.0,0.21347683]
[1768762142744,0.10941585,95493.0,95474.0,0.22395383]
[1768762143444,0.1043633,95490.0,95477.0,0.19932859]
[1768762143951,0.10941585,95497.0,95477.0,0.19932859]
[1768762144146,0.1043633,95490.0,95478.0,0.1087478]
[1768762144841,0.1043633,95490.0,95473.0,0.1087478]
[1768762145237,0.10941585,95494.0,95474.0,0.1087478]
[1768762145550,0.1043633,95490.0,95474.0,0.1087478]
[1768762147350,0.1043633,95490.0,95471.0,0.18490079]
[1768762147847,0.1043633,95490.0,95472.0,0.10473178]
[1768762148550,0.1043633,95490.0,95472.0,0.21347958]
[1768762148953,0.10941585,95489.0,95472.0,0.10473178]
[1768762149150,0.1043633,95482.0,95472.0,0.10473178]
[1768762149449,0.10941585,95487.0,95472.0,0.10473178]
[1768762149651,0.1043633,95482.0,95472.0,0.10473178]
[1768762150350,0.00015711,95492.0,95474.0,0.1087478]
[1768762150551,0.1043633,95490.0,95476.0,0.19932859]
[1768762150750,0.1043633,95490.0,95478.0,0.1087478]
[1768762151352,0.1043633,95490.0,95477.0,0.09058079]
[1768762151548,0.1043633,95490.0,95474.0,0.1087478]
[1768762151748,0.1043633,95490.0,95471.0,0.36863776]
[1768762151950,0.1043633,95490.0,95472.0,0.1087478]
[1768762152251,0.1043633,95490.0,95473.0,0.1087478]
[1768762152650,0.010476,95489.0,95473.0,0.1087478]
[1768762152844,0.010476,95489.0,95472.0,0.09058079]
[1768762153050,0.010476,95489.0,95474.0,0.10473287]
[1768762153250,0.1043633,95484.0,95472.0,0.27431776]
[1768762153545,0.010476,95489.0,95471.0,0.16930917]
[1768762153745,0.010476,95489.0,95473.0,0.10473233]
[1768762153958,0.010476,95489.0,95471.0,0.27805697]
[1768762154252,0.010476,95489.0,95472.0,0.2884693]
[1768762154465,0.10957296,95492.0,95472.0,0.2884693]
[1768762154466,0.1043633,95482.0,95472.0,0.1797215]
[1768762154753,0.1043633,95482.0,95470.0,0.07498917]
[1768762155651,0.1043633,95480.0,95470.0,0.07498917]
[1768762155847,0.1043633,95480.0,95469.0,0.07741195]
[1768762156047,0.1043633,95480.0,95469.0,0.00230443]
[1768762156247,0.10941585,95479.0,95463.0,0.09432]
[1768762156447,0.0966638,95483.0,95463.0,0.09432]
[1768762156650,0.1043633,95480.0,95465.0,0.10474]
[1768762157142,0.21377915,95480.0,95465.0,0.10474]
[1768762157343,0.10941585,95479.0,95465.0,0.10474]
[1768762158261,0.1043633,95480.0,95465.0,0.10474]
[1768762162458,0.1148403,95480.0,95465.0,0.10474]
[1768762162940,0.22602127,95480.0,95465.0,0.10474]
[1768762164460,0.12165797,95480.0,95465.0,0.10474]
[1768762164659,0.21554427,95480.0,95465.0,0.10474]
[1768762165860,0.21554427,95480.0,95465.0,0.17981935]
[1768762167155,0.1043633,95475.0,95465.0,0.17981935]
[1768762167360,0.1043633,95475.0,95458.0,0.09432]
[1768762167568,0.1043633,95475.0,95460.0,0.010479]
[1768762168466,0.1043633,95475.0,95458.0,0.104799]
[1768762168957,0.1043633,95475.0,95458.0,0.09432]
[1768762169566,0.21554427,95480.0,95460.0,0.1113443]
[1768762169567,0.11118097,95480.0,95460.0,0.1113443]
[1768762169865,0.21554427,95480.0,95460.0,0.1113443]
[1768762170170,0.1043633,95474.0,95460.0,0.1113443]
[1768762171772,0.30986997,95474.0,95455.0,0.09373647]
[1768762171962,0.11118097,95473.0,95457.0,0.09432]
[1768762172555,0.20550667,95473.0,95457.0,0.09432]
[1768762172859,0.11118097,95472.0,95457.0,0.09432]
[1768762176258,0.11118097,95472.0,95458.0,0.010479]
[1768762176458,0.11118097,95472.0,95457.0,0.104799]
[1768762177161,0.11210665,95468.0,95457.0,0.09432]
[1768762177361,0.06829429,95469.0,95457.0,0.09432]
[1768762177566,0.06829429,95469.0,95458.0,0.11522614]
[1768762178261,0.1043633,95470.0,95458.0,0.11522614]
[1768762178971,0.010477,95479.0,95458.0,0.11522614]
[1768762179462,0.2098061,95475.0,95458.0,0.11522614]
[1768762179662,0.11210665,95474.0,95458.0,0.11522614]
[1768762180568,0.11210665,95473.0,95458.0,0.11522614]
[1768762191994,0.09769945,95472.0,95458.0,0.11522614]
[1768762192182,0.09769945,95470.0,95458.0,0.11522614]
[1768762192370,0.10865238,95467.0,95458.0,0.11522614]
[1768762192572,0.09170798,95468.0,95458.0,0.11522614]
[1768762192873,0.10865238,95471.0,95458.0,0.11522614]
[1768762194681,0.10865238,95471.0,95458.0,0.10474714]
[1768762195374,0.09170798,95473.0,95458.0,0.10474714]
[1768762195677,0.20036036,95473.0,95458.0,0.10474714]
[1768762196271,0.10865238,95472.0,95458.0,0.10474714]
[1768762200781,0.09170798,95473.0,95459.0,0.010479]
[1768762200982,0.10865238,95471.0,95458.0,0.10474714]
[1768762201187,0.09170798,95472.0,95456.0,0.010479]
[1768762201490,0.09170798,95472.0,95457.0,0.10475043]
[1768762201685,0.10865238,95475.0,95458.0,0.010479]
[1768762201894,0.09432,95477.0,95460.0,0.010479]
[1768762202184,0.09432,95477.0,95462.0,0.010478]
[1768762204391,0.09432,95477.0,95458.0,0.11928002]
[1768762204596,0.09432,95477.0,95459.0,0.11928002]
[1768762204789,0.09170798,95476.0,95460.0,0.010479]
[1768762204990,0.09432,95477.0,95462.0,0.11928002]
[1768762205193,0.09432,95477.0,95461.0,0.010479]
[1768762207994,0.09432,95477.0,95463.0,0.010478]
[1768762208397,0.09432,95477.0,95470.0,0.010478]
[1768762208593,0.00230405,95484.0,95464.0,0.09441653]
[1768762208893,0.00230405,95484.0,95470.0,0.11928002]
[1768762209085,0.00230405,95484.0,95477.0,0.010477]
[1768762209489,5e-08,95484.0,95477.0,0.010477]
[1768762209894,5e-08,95484.0,95474.0,0.010477]
[1768762210088,5e-08,95484.0,95474.0,0.12975702]
[1768762210287,5e-08,95484.0,95476.0,0.010477]
[1768762210888,5e-08,95484.0,95474.0,0.11928002]
[1768762211092,5e-08,95484.0,95478.0,0.010477]
[1768762212790,0.09432,95495.0,95478.0,0.21369655]
[1768762212997,0.09432,95495.0,95480.0,0.11928002]
[1768762214899,0.09432,95495.0,95476.0,0.12975702]
[1768762215300,0.20297238,95495.0,95476.0,0.12975702]
[1768762215502,0.09432,95495.0,95477.0,0.11928002]
[1768762216501,0.09432,95495.0,95478.0,0.010477]
[1768762217603,0.09432,95495.0,95480.0,0.010476]
[1768762217903,0.09432,95495.0,95482.0,0.010476]
[1768762218393,0.20036036,95502.0,95480.0,0.12975602]
[1768762218599,0.20036036,95502.0,95480.0,0.22417255]
[1768762218798,0.10865238,95501.0,95483.0,0.010476]
[1768762219510,0.10865238,95501.0,95480.0,0.21369655]
[1768762221205,0.10865238,95501.0,95481.0,0.010476]
[1768762223997,0.10865238,95501.0,95480.0,0.22417355]
[1768762226309,0.10865238,95501.0,95482.0,0.010476]
[1768762228709,0.20139985,95501.0,95482.0,0.010476]
[1768762228902,0.11182638,95500.0,95482.0,0.010476]
[1768762232615,0.11182638,95500.0,95480.0,0.21369655]
[1768762232815,0.20457385,95500.0,95481.0,0.010476]
[1768762233116,0.11182638,95499.0,95481.0,0.010476]
[1768762233318,0.20457385,95499.0,95481.0,0.010476]
[1768762235914,0.11182638,95498.0,95481.0,0.010476]
[1768762238015,0.11182638,95498.0,95477.0,0.12369185]
[1768762238221,0.11385823,95497.0,95479.0,0.010477]
[1768762241318,0.11385823,95497.0,95481.0,0.010476]
[1768762249743,0.11385823,95495.0,95478.0,0.010477]
[1768762253749,0.11337729,95494.0,95478.0,0.010477]
[1768762253950,0.11337729,95494.0,95477.0,0.09432]
[1768762257551,0.11337729,95494.0,95480.0,0.010477]
[1768762260657,0.09428,95502.0,95480.0,0.010477]
[1768762260851,0.10437287,95500.0,95480.0,0.11484987]
[1768762261051,0.11337729,95499.0,95480.0,0.11484987]
[1768762261451,0.11337729,95498.0,95480.0,0.11484987]
[1768762261659,0.11337729,95498.0,95480.0,0.010477]
[1768762261861,0.11337729,95498.0,95482.0,0.010476]
[1768762262060,0.11337729,95498.0,95480.0,0.010476]
[1768762262959,0.11337729,95498.0,95480.0,0.11484887]
[1768762268165,0.11337729,95498.0,95482.0,0.010476]
[1768762269362,0.11337729,95498.0,95480.0,0.10437287]
[1768762270564,0.11337729,95498.0,95481.0,0.010476]
[1768762271363,0.21157202,95498.0,95481.0,0.010476]
[1768762271562,0.21157202,95497.0,95481.0,0.010476]
[1768762271961,0.11337729,95496.0,95481.0,0.010476]
[1768762272471,0.21157202,95496.0,95479.0,0.010477]
[1768762272674,0.11337729,95495.0,95479.0,0.010477]
[1768762274167,0.11337729,95495.0,95477.0,0.09432]
[1768762274368,0.11337729,95494.0,95478.0,0.010477]
[1768762276369,0.11337729,95493.0,95477.0,0.09432]
[1768762276876,0.11337729,95492.0,95477.0,0.09432]
[1768762277872,0.21157202,95486.0,95469.0,0.00230443]
[1768762278069,0.11337729,95479.0,95469.0,0.00230443]
[1768762278266,0.10437287,95480.0,95469.0,0.00230443]
[1768762278580,0.09819473,95486.0,95470.0,0.10472903]
[1768762280372,0.10437287,95490.0,95470.0,0.10472903]
[1768762280373,0.11337729,95483.0,95470.0,0.10472903]
[1768762281779,0.10437287,95480.0,95470.0,0.10472903]
[1768762282668,0.11337729,95483.0,95470.0,0.10472903]
[1768762283067,0.10437287,95480.0,95470.0,0.10472903]
[1768762283872,0.11337729,95483.0,95470.0,0.11520703]
[1768762284083,0.10437287,95480.0,95470.0,0.11520703]
[1768762284385,0.10437287,95480.0,95470.0,0.10472903]
[1768762285175,0.21122743,95479.0,95464.0,0.00230453]
[1768762285376,0.10437287,95470.0,95454.0,0.09428]
[1768762285569,0.10437287,95463.0,95454.0,0.104759]
[1768762285779,0.11698213,95469.0,95457.0,0.10473946]
[1768762285971,0.10437287,95467.0,95454.0,0.09428]
[1768762286178,0.10437287,95464.0,95454.0,0.09428]
[1768762286374,0.10437287,95464.0,95455.0,0.10475756]
[1768762287076,0.11698213,95469.0,95455.0,0.10475756]
[1768762288780,0.11698213,95464.0,95452.0,0.01048]
[1768762288977,0.10437287,95462.0,95452.0,0.01048]
[1768762289174,0.10437287,95462.0,95453.0,0.10475372]
[1768762290081,0.11698213,95461.0,95449.0,0.00230491]
[1768762290281,0.11698213,95458.0,95444.0,0.00230502]
[1768762290479,0.10437287,95454.0,95444.0,0.00230502]
[1768762291182,0.10437287,95454.0,95444.0,0.00226269]
[1768762291384,0.221355,95454.0,95444.0,0.00226269]
[1768762291886,0.221355,95454.0,95435.0,0.11706357]
[1768762291887,0.11698213,95453.0,95432.0,0.010482]
[1768762292075,0.11698213,95449.0,95433.0,0.09432]
[1768762292277,0.11698213,95449.0,95437.0,0.10472215]
[1768762292487,0.11698213,95449.0,95433.0,0.09432]
[1768762292876,0.11698213,95449.0,95434.0,0.10476799]
[1768762293083,0.10437287,95444.0,95434.0,0.10476799]
[1768762293291,0.11698213,95443.0,95434.0,0.10476799]
[1768762293490,0.12429139,95442.0,95423.0,0.09432]
[1768762293685,0.10437287,95433.0,95423.0,0.09432]
[1768762293894,0.03004609,95439.0,95426.0,0.10477677]
[1768762294092,0.03004609,95439.0,95423.0,0.104803]
[1768762294388,0.10437287,95440.0,95426.0,0.010482]
[1768762294577,0.10437287,95440.0,95434.0,0.001]
[1768762294888,0.12226554,95442.0,95434.0,0.001]
[1768762295088,0.02802024,95441.0,95434.0,0.001]
[1768762295281,0.02802024,95441.0,95423.0,0.104803]
[1768762295481,0.0942453,95442.0,95423.0,0.104803]
[1768762295482,0.02802024,95439.0,95423.0,0.09432]
[1768762295678,0.02802024,95439.0,95424.0,0.11526416]
[1768762296175,0.02802024,95439.0,95425.0,0.010483]
[1768762296583,0.10437287,95440.0,95425.0,0.010483]
[1768762296782,0.10437287,95440.0,95426.0,0.10478775]
[1768762297294,0.09432,95445.0,95433.0,0.10849861]
[1768762297482,0.09432,95449.0,95436.0,0.09801661]
[1768762297794,0.10437287,95460.0,95440.0,0.010481]
[1768762298089,0.09432,95459.0,95440.0,0.010481]
[1768762299079,0.0920551,95458.0,95440.0,0.010481]
[1768762299682,0.10437287,95450.0,95440.0,0.010481]
[1768762300990,0.09432,95457.0,95440.0,0.010481]
[1768762301691,0.09432,95457.0,95440.0,0.011481]
[1768762302289,0.09432,95457.0,95440.0,0.010481]
[1768762303790,0.09432,95457.0,95439.0,0.010481]
[1768762305493,0.09432,95457.0,95436.0,0.10849761]
[1768762306391,0.1863751,95457.0,95436.0,0.10849761]
[1768762306593,0.0920551,95456.0,95431.0,0.09801661]
[1768762306997,0.0920551,95456.0,95431.0,0.010482]
[1768762307496,0.0920551,95456.0,95434.0,0.010482]
[1768762309789,0.0920551,95456.0,95437.0,0.010481]
[1768762311790,0.0920551,95456.0,95433.0,0.09801661]
[1768762312196,0.0920551,95456.0,95433.0,0.20278734]
[1768762313097,0.0920551,95456.0,95442.0,0.010481]
[1768762314690,0.0920551,95456.0,95438.0,0.010481]
[1768762314889,0.0920551,95456.0,95434.0,0.09889728]
[1768762315993,0.0920551,95456.0,95439.0,0.010481]
[1768762316398,0.01087429,95455.0,95439.0,0.010481]
[1768762317506,0.01087429,95455.0,95437.0,0.010481]
[1768762317693,0.01087429,95455.0,95439.0,0.010481]
[1768762318902,0.10114452,95455.0,95439.0,0.010481]
[1768762319196,0.01026289,95454.0,95434.0,0.09889728]
[1768762320294,0.01026289,95454.0,95437.0,0.010481]
[1768762320606,0.01091567,95451.0,95434.0,0.010482]